[Event "52nd Rilton Cup 2024-25"]
[Site "Stockholm"]
[Date "2025.01.05"]
[Round "9.8"]
[White "Hillarp Persson, Tiger"]
[Black "Ippolito, Dean"]
[Result "0-1"]
[ECO "E71"]
[WhiteElo "2468"]
[BlackElo "2324"]
[Annotator "TA"]
[PlyCount "84"]
[EventDate "2024.12.23"]
[EventType "swiss"]
[EventCountry "SWE"]
[SourceTitle "playchess.com"]
[Source "ChessBase"]
[SourceQuality "1"]
[TimeControl "40/5400+30:1800+30"]

{[%evp 15,84,43,41,0,0,0,0,-16,-20,0,0,-19,-17,-13,-20,-17,-12,-21,0,0,0,-7,0,0,5,9,11,0,10,-27,0,0,0,0,52,0,0,0,0,0,0,0,0,0,0,0,0,0,0,-90,-45,-331,-336,-365,-345,-368,-344,-571,-571,-494,-444,-872,-885,-777,-780,-863,-852,-805,-750,-1034,-841]} 1. d4 {[%emt 0:00:02]} Nf6 {[%emt 0:00:06]} 2. c4 {[%emt 0:00:06]} g6 {[%emt 0:00:05]} 3. Nc3 {[%emt 0:00:05]} Bg7 {[%emt 0:00:04]} 4. e4 {[%emt 0:00:07]} d6 {[%emt 0:00:04]} 5. h3 {[%emt 0:03:09]} O-O {[%emt 0:00:37]} 6. Be3 {[%emt 0:00:06]} Nc6 {[%emt 0:00:13]} 7. d5 {[%emt 0:02:03]} Ne5 {[%emt 0:00:07]} 8. f4 {[%emt 0:07:58]} Ned7 {[%emt 0:00:07]} 9. Bd3 {[%emt 0:00:56]} e5 {[%emt 0:11:31]} 10. dxe6 {[%emt 0:03:08]} fxe6 {[%emt 0:00:10]} 11. g4 {[%emt 0:02:29]} b6 {[%emt 0:03:25]} 12. Nge2 {[%emt 0:10:52]} Bb7 {[%emt 0:02:27]} 13. Qd2 {[%emt 0:26:36]} Nc5 {[%emt 0:12:13]} 14. Bxc5 {[%emt 0:01:20]} bxc5 {[%emt 0:00:12]} 15. O-O-O {[%emt 0:00:13]} Rb8 {[%emt 0:34:28]} 16. b3 {[%emt 0:04:10]} (16. Rhf1 $5) 16... Kh8 {[%emt 0:03:56]} 17. g5 {[%emt 0:02:28]} Nh5 {[%emt 0:00:42]} 18. Rhf1 {[%emt 0:00:12]} Qd7 {[%emt 0:03:32]} 19. Bc2 {[%emt 0:08:18]} a5 {[%emt 0:01:32]} 20. Rf2 {[%emt 0:06:03]} Rf7 {[%emt 0:05:48]} 21. Rdf1 {[%emt 0:06:28]} Rbf8 {[%emt 0:00:06]} 22. Qe3 {[%emt 0:04:03]} Bc6 {[%emt 0:03:30]} 23. a4 {[%emt 0:00:10]} Qc8 {[%emt 0:01:23]} 24. h4 {[%emt 0:01:54]} Bd7 {[%emt 0:03:40]} (24... Kg8 $11) 25. Nb5 {[%emt 0:01:58]} (25. e5 $14) 25... Qb8 {[%emt 0:04:29]} 26. f5 {[%emt 0:06:23]} exf5 {[%emt 0:05:45]} 27. exf5 {[%emt 0:00:07]} Bxf5 {[%emt 0:00:06]} 28. Rxf5 {[%emt 0:00:37]} Rxf5 {[%emt 0:00:45]} (28... gxf5 29. Qf3 $14) (28... gxf5 $5 29. Qf3 $8 Nf6 (29... c6 30. Qxh5 Kg8 31. Nbc3 $16) 30. gxf6 Bxf6 $16) 29. Bxf5 {[%emt 0:02:25]} gxf5 {[%emt 0:00:03]} 30. Qf3 $1 {[%emt 0:00:18]} Qe8 {[%emt 0:00:14]} 31. Nxc7 {[%emt 0:00:22]} Qe5 {[%emt 0:00:19]} 32. Kd2 {[%emt 0:00:42] [#]} (32. Kd1 $11 Qa1+ 33. Nc1 Qd4+ 34. Kc2 Qb2+ (34... Qxh4 35. Rh1 $11) 35. Kd1 Qd4+) 32... f4 $1 $17 {[%emt 0:01:51]} ({Much worse is} 32... Qb2+ 33. Kd1 f4 34. Ne6 (34. Qxh5 $2 Qxb3+ 35. Kd2 Qe3+ 36. Kd1 Qd3+ 37. Ke1 f3 $19) 34... Qb1+ 35. Kd2 Qb2+ 36. Kd1 $11) 33. Nd5 $2 {[%emt 0:00:37][%mdl 8192]} (33. Qxh5 $2 {loses.} Qe3+ 34. Kd1 Qd3+ 35. Ke1 f3 $19) (33. Qd3 $1 $15) 33... Ng3 $19 {[%emt 0:01:13]} 34. Rb1 {[%emt 0:00:32]} Nxe2 {[%emt 0:02:12]} 35. Qxe2 {[%emt 0:00:05]} Qd4+ {[%emt 0:00:01]} 36. Kc2 $2 {[%emt 0:00:18]} (36. Qd3 Qf2+ 37. Qe2 Qxh4 38. Qf3 Qh2+ (38... Qxg5 $2 39. Re1 $19) 39. Kd3) 36... f3 $19 {[%emt 0:00:13]} 37. Qe3 {[%emt 0:00:30]} Qxh4 {[%emt 0:00:05]} 38. Rf1 {[%emt 0:00:17]} (38. Nf6 $142 f2 39. Rf1 Bxf6 40. Rxf2) 38... Qh3 $19 {[%emt 0:01:20]} 39. Qd3 {[%emt 0:00:35]} Qg2+ {[%emt 0:00:08]} 40. Kd1 {[%emt 0:00:14]} Qxg5 {[%emt 0:01:08]} 41. Rh1 {[%emt 0:03:22]} h6 {[%emt 0:03:20]} 42. Qe3 {[%emt 0:01:27]} Qg6 {[%emt 0:01:53]} 0-1

[Event "52nd Rilton Cup 2024-25"]
[Site "Stockholm"]
[Date "2025.01.05"]
[Round "9.9"]
[White "Cieslak, Patryk"]
[Black "Kucuksari, Kaan"]
[Result "0-1"]
[ECO "B41"]
[WhiteElo "2405"]
[BlackElo "2462"]
[Annotator "TA"]
[PlyCount "72"]
[EventDate "2024.12.23"]
[EventType "swiss"]
[EventCountry "SWE"]
[SourceTitle "playchess.com"]
[Source "ChessBase"]
[SourceQuality "1"]
[TimeControl "40/5400+30:1800+30"]

{[%evp 13,72,29,52,36,25,27,42,27,50,45,47,32,50,38,72,59,74,72,58,58,78,93,145,77,148,128,150,27,18,20,22,15,1,0,0,2,1,0,0,-248,-254,-367,-349,-642,-642,-645,-643,-641,-639,-566,-647,-29965,-29968,-29980,-945,-862,-799,-781,-770,-760,-741]} 1. e4 {[%emt 0:00:03]} c5 {[%emt 0:00:03]} 2. Nf3 {[%emt 0:00:04]} e6 {[%emt 0:00:02]} 3. d4 {[%emt 0:00:07]} cxd4 {[%emt 0:00:03]} 4. Nxd4 {[%emt 0:00:06]} a6 {[%emt 0:00:02]} 5. c4 {[%emt 0:00:08]} Nf6 {[%emt 0:00:02]} 6. Nc3 {[%emt 0:00:02]} Qc7 {[%emt 0:00:04]} 7. a3 {[%emt 0:00:08]} b6 {[%emt 0:00:08]} 8. f4 {[%emt 0:00:06]} Bb7 {[%emt 0:00:18]} 9. Bd3 {[%emt 0:00:26]} Nc6 {[%emt 0:01:43]} 10. Nxc6 {[%emt 0:01:35]} dxc6 {[%emt 0:00:54]} 11. e5 {[%emt 0:11:25]} Nd7 {[%emt 0:00:11][%cal Bf6d7,Bd7b8,Bb8c6][%mdl 32]} 12. Qe2 {[%emt 0:00:47]} O-O-O {[%emt 0:01:05]} 13. O-O {[%emt 0:11:28]} c5 {[%emt 0:00:03]} 14. Be3 {[%emt 0:04:56]} Nb8 {[%emt 0:00:04]} 15. Be4 {[%emt 0:02:16]} Nc6 {[%emt 0:05:33]} 16. Rad1 {[%emt 0:07:05]} Kb8 {[%emt 0:00:58]} 17. Rxd8+ {[%emt 0:08:56]} Qxd8 {[%emt 0:00:15]} (17... Nxd8 $142 18. Bxb7 Nxb7) 18. Qf2 {[%emt 0:04:12]} (18. b4 $142) 18... Be7 {[%emt 0:02:30] [#]} (18... Na5 $142) 19. b4 $1 $16 {[%emt 0:04:50][%cal Rb4c5]} ({But not} 19. Rd1 $6 Qc8 $14) 19... f5 {[%emt 0:21:31]} 20. Bxc6 {[%emt 0:05:24]} (20. exf6 $16 Bxf6 21. Rc1) 20... Bxc6 $11 {[%emt 0:01:32]} 21. Rd1 {[%emt 0:00:52] Prevents Qd3} Qc8 {[%emt 0:05:04]} 22. bxc5 {[%emt 0:00:57]} Rd8 $1 {[%emt 0:00:06]} 23. Qb2 {[%emt 0:08:03]} Rxd1+ {[%emt 0:01:19]} 24. Nxd1 {[%emt 0:00:01]} Qd8 {[%emt 0:03:00]} 25. Nf2 {[%emt 0:02:21]} b5 {[%emt 0:00:15]} 26. a4 $2 {[%emt 0:03:16]} (26. Qb3 $11) 26... Qa5 $40 {[%emt 0:00:44][%mdl 128] White is in trouble.} 27. Nd3 {[%emt 0:02:44] Prevents Qe1+} (27. Bd2 $142 Qxa4 28. cxb5 Qxb5 29. Qxb5+ Bxb5 30. g4) 27... Qxa4 {[%emt 0:00:10] and ...Qd1+ would now be decisive} 28. Nb4 $2 {[%emt 0:01:27]} (28. Qc1) 28... Qd1+ {[%emt 0:17:48]} 29. Kf2 {[%emt 0:00:03] White is weak on the light squares} Bh4+ {[%emt 0:00:06]} 30. g3 {[%emt 0:00:40]} Qf3+ {[%emt 0:00:04]} 31. Ke1 {[%emt 0:00:27] aiming for Nxc6+.} Qxe3+ {[%emt 0:00:07]} 32. Kf1 {[%emt 0:00:05]} Qf3+ {[%emt 0:00:47]} 33. Qf2 {[%emt 0:01:19]} Be7 {[%emt 0:02:27]} (33... Qd1+ $142 34. Qe1 Bg2+ 35. Kxg2 Qxe1 36. Nxa6+ Kb7 37. cxb5 Qe2+ 38. Kg1 Qxb5 39. c6+ Kxc6 (39... Kxa6 $2 40. gxh4 h5 41. c7 $19) 40. Kg2 Qe2+ 41. Kg1 Qxa6 42. Kf2 Be7 43. Ke3 Qc4 44. Kf2 Qe4 45. g4 fxg4 (45... Qxf4+ {is a self mate.} 46. Ke2 Bb4 47. h3 Kd5 48. gxf5 Ke4 49. fxe6 Qf3#) 46. h4 Bc5+ (46... Bxh4+ 47. Kg1 Qe1+ 48. Kh2 Qf1 49. f5 g3#) 47. Kf1 Qf3+ 48. Ke1 Bb4#) 34. Qxf3 {[%emt 0:00:46]} Bxf3 {[%emt 0:00:02]} 35. Nxa6+ {[%emt 0:00:01]} Kb7 {[%emt 0:00:14]} 36. cxb5 {[%emt 0:00:13] [#]} Bc6 $1 {[%emt 0:00:54][%mdl 512]} 0-1

[Event "52nd Rilton Cup 2024-25"]
[Site "Stockholm"]
[Date "2025.01.05"]
[Round "9.10"]
[White "Pantzar, Milton"]
[Black "Sari, Yasin"]
[Result "1-0"]
[ECO "D10"]
[WhiteElo "2452"]
[BlackElo "2325"]
[Annotator "TA"]
[PlyCount "63"]
[EventDate "2024.12.23"]
[EventType "swiss"]
[EventCountry "SWE"]
[SourceTitle "playchess.com"]
[Source "ChessBase"]
[SourceQuality "1"]
[TimeControl "40/5400+30:1800+30"]

{[%evp 9,63,-2,-14,0,0,-3,49,33,50,32,43,0,-10,0,55,52,133,132,231,241,324,357,361,361,576,601,606,573,573,593,660,656,624,621,680,695,801,787,792,798,928,918,903,900,897,1060,1050,1045,1297,1214,1441,1424,2305,2463,2817,2856]} 1. d4 {[%emt 0:00:05]} d5 {[%emt 0:00:05]} 2. c4 {[%emt 0:00:24]} c6 {[%emt 0:00:05]} 3. Nc3 {[%emt 0:00:16]} Nf6 {[%emt 0:00:16]} 4. e3 {[%emt 0:00:11]} Bf5 {[%emt 0:00:24]} 5. f3 {[%emt 0:02:15]} e6 {[%emt 0:03:54]} 6. g4 {[%emt 0:01:06][%cal Bg2g4,Bg4g5][%mdl 32]} Bg6 {[%emt 0:03:09]} 7. h4 {[%emt 0:00:19]} h5 {[%emt 0:05:16]} (7... h6 $1 $11) 8. g5 $14 {[%emt 0:01:36] White is slightly better.} Nfd7 {[%emt 0:00:10]} 9. Nge2 {[%emt 0:05:49]} Bd6 $1 {[%emt 0:04:29]} 10. f4 {[%emt 0:03:10]} (10. b3 $14) 10... dxc4 $11 {[%emt 0:24:46]} 11. Ng3 {[%emt 0:08:30]} Na6 {[%emt 0:07:01]} (11... Nb6 $11) 12. Bxc4 $14 {[%emt 0:08:18]} c5 {[%emt 0:04:23] White stays focused until the end.} (12... Nb6 $14 13. Be2 Nb4) 13. d5 $16 {[%emt 0:03:21][%cal Bd4d5,Bd5e6][%mdl 32] White is more active.} Nb4 {[%emt 0:03:22]} (13... Qe7 $16) 14. dxe6 $18 {[%emt 0:05:24]} Nc2+ {[%emt 0:05:45]} 15. Kf2 {[%emt 0:02:58]} Nb6 {[%emt 0:00:42][%cal Ob6c4]} 16. Nce4 {[%emt 0:09:05]} Nxa1 {[%emt 0:00:29]} (16... Bxf4 {might work better.} 17. exf4 (17. Qxc2 Bxg3+ 18. Kxg3 Qc7+ 19. Kf2 Nxc4 $14) 17... Qxd1 18. Bb5+ (18. Rxd1 Nxc4 19. b3 Nxa1 $16) 18... Ke7 19. Rxd1 fxe6) 17. Nxd6+ {[%emt 0:02:10] White is clearly winning.} Kf8 {[%emt 0:00:17]} 18. f5 {[%emt 0:04:41][%cal Bf4f5,Bf5g6][%mdl 32]} Nxc4 {[%emt 0:08:39]} 19. Nxc4 {[%emt 0:00:54] [#] Qf3 is the strong threat.} fxe6 {[%emt 0:00:32]} 20. fxg6 {[%emt 0:01:52] Threatening mate with Qf3+.} Ke7 {[%emt 0:00:45]} 21. Qxd8+ {[%emt 0:04:59]} ({Less strong is} 21. Nxh5 Qxd1 22. Rxd1 Rxh5 $18) 21... Raxd8 {[%emt 0:00:07]} 22. Ke2 {[%emt 0:01:18]} b5 {[%emt 0:01:25]} 23. Ne5 {[%emt 0:01:31]} Rd5 {[%emt 0:01:46]} 24. Nf7 {[%emt 0:00:49]} Rc8 {[%emt 0:02:55]} 25. Bd2 {[%emt 0:01:47]} Nc2 {[%emt 0:00:09]} 26. Rc1 {[%emt 0:00:14]} Rxd2+ {[%emt 0:00:19]} 27. Kxd2 {[%emt 0:00:06]} Nb4 {[%emt 0:00:02]} 28. Nxh5 {[%emt 0:01:15]} c4 {[%emt 0:01:03][%cal Bc5c4,Bc4c3][%mdl 32]} 29. Nxg7 {[%emt 0:00:59]} Nd3 {[%emt 0:00:49] [#]} 30. h5 $1 {[%emt 0:01:10][%cal Bh4h5,Bh5h6][%mdl 32]} Nxc1 {[%emt 0:00:05]} (30... Nb4 31. h6) 31. Kxc1 {[%emt 0:00:05]} c3 {[%emt 0:02:54]} 32. h6 {[%emt 0:01:03] Weighted Error Value: White=0.04 (flawless) /Black=0.60.  Mistake:       	White=1     	Black=5      Inaccurate:     	---       	Black=1      OK:         	White=8     	Black=4      Best:        	White=4     	Black=2      Strong:       	---       	Black=1} 1-0

[Event "52nd Rilton Cup 2024-25"]
[Site "Stockholm"]
[Date "2025.01.05"]
[Round "9.11"]
[White "Jain Kashish Manoj"]
[Black "Baenziger, Fabian"]
[Result "1-0"]
[ECO "B31"]
[WhiteElo "2363"]
[BlackElo "2422"]
[Annotator "TA"]
[PlyCount "135"]
[EventDate "2024.12.23"]
[EventType "swiss"]
[EventCountry "SWE"]
[SourceTitle "playchess.com"]
[Source "ChessBase"]
[SourceQuality "1"]
[TimeControl "40/5400+30:1800+30"]

{[%evp 23,135,14,6,2,24,22,20,16,31,18,43,43,51,20,67,68,64,60,66,65,83,75,76,53,129,132,120,159,141,138,141,124,139,111,221,222,224,212,373,185,159,128,145,133,140,82,256,264,260,265,245,232,282,132,165,162,165,141,166,142,166,137,168,170,193,184,118,185,170,200,267,260,246,242,250,241,221,239,431,441,550,457,449,426,440,407,376,232,232,232,232,232,224,282,277,0,193,0,172,61,61,62,91,91,1524,1523,1516,1154,29972,29972,29971,6971,29980,29981]} 1. e4 {[%emt 0:00:14]} c5 {[%emt 0:00:17]} 2. Nf3 {[%emt 0:00:09]} Nc6 {[%emt 0:00:17]} 3. Bb5 {[%emt 0:00:09]} g6 {[%emt 0:00:22]} 4. O-O {[%emt 0:06:18]} Bg7 {[%emt 0:00:20]} 5. Re1 {[%emt 0:00:05]} Nf6 {[%emt 0:00:39]} 6. e5 {[%emt 0:00:44]} Nd5 {[%emt 0:00:15]} 7. Nc3 {[%emt 0:00:06][%cal Bb1c3,Bc3e4,Be4g5][%mdl 32]} Nc7 {[%emt 0:00:01]} 8. Bxc6 {[%emt 0:00:08]} dxc6 {[%emt 0:00:19]} 9. d3 {[%emt 0:00:34]} b6 {[%emt 0:01:53]} 10. h3 {[%emt 0:00:54]} Ne6 {[%emt 0:01:12]} 11. Ne4 {[%emt 0:05:53]} O-O {[%emt 0:01:29]} 12. a4 {[%emt 0:01:21]} a5 {[%emt 0:00:51]} 13. Neg5 {[%emt 0:10:25]} Nc7 {[%emt 0:09:12]} 14. Bf4 {[%emt 0:11:43]} Nd5 {[%emt 0:02:07]} 15. Qd2 {[%emt 0:09:09]} h6 {[%emt 0:06:14]} 16. Ne4 {[%emt 0:00:14]} Kh7 {[%emt 0:01:09]} 17. Bg3 {[%emt 0:14:18]} Be6 {[%emt 0:06:03]} 18. d4 {[%emt 0:06:04]} c4 {[%emt 0:03:42]} (18... cxd4 $11 19. Nxd4 Bd7) 19. c3 $14 {[%emt 0:02:27]} Nc7 {[%emt 0:12:30][%cal Bd5c7,Bc7e6,Be6g5][%mdl 32]} 20. Qe2 {[%emt 0:05:17]} Bd5 {[%emt 0:02:13]} 21. Nfd2 {[%emt 0:00:08]} b5 {[%emt 0:00:04]} 22. f4 {[%emt 0:01:08]} Ne6 {[%emt 0:15:34]} 23. Qf2 {[%emt 0:00:46]} f5 {[%emt 0:03:13]} ({Black should try} 23... Rb8 $14) 24. exf6 $16 {[%emt 0:00:10]} Bxf6 {[%emt 0:00:07]} 25. f5 {[%emt 0:06:00]} Ng5 {[%emt 0:01:23]} 26. fxg6+ {[%emt 0:00:38]} Kxg6 {[%emt 0:00:06]} 27. Nxf6 {[%emt 0:01:05]} Rxf6 {[%emt 0:01:09]} 28. Qe2 {[%emt 0:00:55]} Qd7 {[%emt 0:05:52]} (28... Re6 $16 29. Qg4 Qc8) 29. h4 $18 {[%emt 0:01:13]} (29. Qxe7 Nxh3+ 30. Kh2 (30. gxh3 Qxh3 31. Ne4 Raf8 $19) 30... Qxe7 31. Rxe7 Nf2 $14) 29... Ne6 {[%emt 0:00:57]} 30. Ne4 {[%emt 0:04:04]} Rf7 $2 {[%emt 0:01:27]} (30... Nf4 31. Qc2 Nd3) 31. Qg4+ {[%emt 0:09:51]} (31. Qc2 $142 {[%cal Oe4f6] Threatening mate with Nf6+!.} Kg7 32. Be5+ Kf8 33. Rf1) 31... Kh7 {[%emt 0:00:11]} 32. Be5 {[%emt 0:00:37] Black is weak on the dark squares} Qe8 {[%emt 0:13:24] Repels Ng5+} 33. axb5 {[%emt 0:03:26]} cxb5 {[%emt 0:00:20]} 34. Bf6 {[%emt 0:00:36] White is much more active.} (34. Qe2 $142 $1 {[%cal Oe4g5] and Ng5+! would now be decisive} Rf8 35. Nc5) 34... exf6 $2 {[%emt 0:07:06]} (34... Rxf6 $2 35. Nxf6+ exf6 36. Qf5+ Qg6 37. Qxd5 $18) (34... Qc6 $16 {is a better defense.} 35. Ng5+ (35. Qf5+ Kg8 $11) 35... Nxg5 36. Qf5+ (36. Bxe7 $2 Ne4 $19) 36... Kg8 37. Qg6+ (37. hxg5 $2 exf6 38. g6 Rff8 $19) 37... Kf8 38. Qxh6+ Ke8 39. Bxg5 (39. hxg5 Kd7 $16) 39... Qxh6 40. Bxh6 Kd7) 35. Qf5+ {[%emt 0:00:04]} Kg7 {[%emt 0:00:05]} 36. Qxd5 {[%emt 0:00:03]} (36. Nd6 Qc6 37. Rxe6 (37. Nxf7 Kxf7 38. Qh7+ Ng7 $11) (37. Qg4+ Kf8 $15) 37... Bxe6 38. Qxe6 Qd7 $11) 36... Nc7 {[%emt 0:01:11]} 37. Qd6 {[%emt 0:01:18]} Qd7 {[%emt 0:02:14]} 38. Qg3+ {[%emt 0:00:36]} (38. Qf4 $1 $18) 38... Kh7 $16 {[%emt 0:00:05]} 39. Qf3 {[%emt 0:00:35]} f5 {[%emt 0:01:04]} 40. Nc5 {[%emt 0:00:30]} Qd5 {[%emt 0:00:08]} 41. Qf2 $36 {[%emt 0:01:47][%mdl 2048] Black is under strong pressure.} Rg8 {[%emt 0:07:57]} 42. Re5 $1 {[%emt 0:00:27]} (42. Rxa5 Rfg7 43. Re2 f4 $15) 42... Qc6 {[%emt 0:00:02]} 43. Rxf5 {[%emt 0:06:31]} ({But not} 43. Rxa5 $6 Kh8 $16) 43... Rxg2+ {[%emt 0:00:23]} 44. Qxg2 {[%emt 0:00:02]} Qxg2+ {[%emt 0:01:20]} 45. Kxg2 {[%emt 0:00:01]} Rxf5 {[%emt 0:00:07]} 46. Rxa5 $18 {[%emt 0:00:08][%mdl 4096] Endgame KRN-KRN. White is a pawn up.} Nd5 {[%emt 0:00:03]} 47. Rxb5 {[%emt 0:02:52]} Ne3+ {[%emt 0:04:14]} 48. Kh2 {[%emt 0:01:31]} Kg6 {[%emt 0:02:16]} 49. Rb6+ {[%emt 0:08:36]} Kh5 {[%emt 0:00:26][%cal Oh5g4]} 50. Re6 $1 {[%emt 0:01:21]} Ng4+ $2 {[%emt 0:01:14]} (50... Rf3 51. Nd7 Kxh4) 51. Kg3 {[%emt 0:03:18]} Rf1 {[%emt 0:00:04]} 52. Ne4 {[%emt 0:00:14]} Rg1+ {[%emt 0:01:32]} 53. Kh3 {[%emt 0:00:44]} Rh1+ {[%emt 0:00:05]} 54. Kg2 $1 {[%emt 0:00:07]} Rd1 {[%emt 0:07:39]} 55. Nf6+ {[%emt 0:06:09]} Kxh4 {[%emt 0:00:54]} 56. Nxg4 {[%emt 0:00:05]} Kxg4 {[%emt 0:00:04] KR-KR. White is a pawn up.} 57. Rg6+ $1 {[%emt 0:01:00]} (57. Rxh6 Rd2+ 58. Kf1 Rxb2 $11) 57... Kh5 {[%emt 0:01:49]} 58. Rc6 {[%emt 0:00:18]} Kg4 {[%emt 0:00:01]} 59. Rg6+ {[%emt 0:00:06]} (59. Rxh6 Rd2+ 60. Kf1 Rxb2 $11) 59... Kh5 $1 {[%emt 0:00:03]} 60. Rc6 {[%emt 0:00:03]} Kg4 {[%emt 0:00:06]} 61. Rxc4 {[%emt 0:02:44]} ({And not} 61. Rxh6 Rd2+ 62. Kf1 Rxb2 $11) (61. Kf2 $1 $18) 61... Rd2+ $14 {[%emt 0:00:05]} 62. Kf1 {[%emt 0:00:05]} Kf3 {[%emt 0:02:59]} 63. Ke1 {[%emt 0:00:01] Repels Rd1+} Rxb2 $2 {[%emt 0:02:36][%mdl 8192]} (63... Ke3 $16) 64. d5 $18 {[%emt 0:01:28][%cal Bd4d5,Bd5d6][%mdl 32]} Ke3 {[%emt 0:06:30] [#]} 65. Rd4 $1 {[%emt 0:00:01]} Rb1+ {[%emt 0:00:25]} 66. Rd1 {[%emt 0:00:05]} Rb2 {[%emt 0:00:18] [#]} 67. Kf1 $1 {[%emt 0:01:07]} Kf3 {[%emt 0:00:05]} 68. d6 {[%emt 0:01:08]} 1-0

[Event "52nd Rilton Cup 2024-25"]
[Site "Stockholm"]
[Date "2025.01.05"]
[Round "9.12"]
[White "Dotzer, Lukas"]
[Black "Akesson, Ralf"]
[Result "0-1"]
[ECO "C10"]
[WhiteElo "2426"]
[BlackElo "2336"]
[Annotator "TA"]
[PlyCount "88"]
[EventDate "2024.12.23"]
[EventType "swiss"]
[EventCountry "SWE"]
[SourceTitle "playchess.com"]
[Source "ChessBase"]
[SourceQuality "1"]
[TimeControl "40/5400+30:1800+30"]

{[%evp 15,88,52,63,68,75,69,68,69,53,56,70,37,53,38,35,33,26,0,0,0,35,39,6,-64,-45,-35,53,-69,-36,-141,-125,-150,-142,-178,17,-37,0,-143,-154,-191,-171,-324,-267,-399,-383,-389,-215,-223,-201,-491,-475,-473,-469,-463,-479,-564,-535,-632,-589,-29983,-29984,-5647,-1525,-29990,-29990,-29992,-29993,-29997,-29997,-29997,-29992,-29992,-29993,-29993,-29993]} 1. e4 {[%emt 0:00:02]} e6 {[%emt 0:00:15]} 2. d4 {[%emt 0:00:06]} d5 {[%emt 0:00:08]} 3. Nc3 {[%emt 0:00:05]} dxe4 {[%emt 0:00:10]} 4. Nxe4 {[%emt 0:00:06]} Bd7 {[%emt 0:00:10]} 5. Nf3 {[%emt 0:00:09]} Bc6 {[%emt 0:00:12]} 6. Bd3 {[%emt 0:00:07]} Nd7 {[%emt 0:00:48]} 7. Bf4 {[%emt 0:00:08]} Bxe4 {[%emt 0:02:04]} 8. Bxe4 {[%emt 0:00:05]} c6 {[%emt 0:00:25]} 9. c3 {[%emt 0:09:50]} Ngf6 {[%emt 0:00:54]} 10. Bc2 {[%emt 0:01:19]} Be7 {[%emt 0:00:36]} 11. Qd3 {[%emt 0:09:35]} Nh5 {[%emt 0:07:58]} 12. Bd2 {[%emt 0:08:24]} Qc7 {[%emt 0:02:39]} 13. Ng5 {[%emt 0:08:18]} Nhf6 {[%emt 0:06:04]} 14. Qh3 {[%emt 0:12:07]} h6 {[%emt 0:08:18]} 15. O-O {[%emt 0:09:43]} Rg8 {[%emt 0:04:51]} 16. Nxf7 {[%emt 0:10:46]} Kxf7 {[%emt 0:00:22]} 17. Rae1 {[%emt 0:01:10]} Nf8 {[%emt 0:07:30]} 18. f4 $1 {[%emt 0:07:22]} g6 {[%emt 0:15:36]} 19. g4 {[%emt 0:14:29]} (19. Bb3 $11) 19... Rd8 {[%emt 0:08:32]} 20. g5 {[%emt 0:01:27]} N6h7 {[%emt 0:06:15]} (20... Nh5 $15) 21. gxh6 {[%emt 0:04:50]} (21. Bb3 $14) 21... Rd5 {[%emt 0:01:30]} 22. Bb3 {[%emt 0:00:46] [#]} ({Better is} 22. Re5 $15) 22... Rf5 $1 $17 {[%emt 0:01:40]} 23. Kh1 {[%emt 0:00:26]} Bd6 {[%emt 0:06:42]} 24. Rg1 {[%emt 0:00:35]} Qa5 $2 {[%emt 0:06:51]} (24... Bxf4 $19 25. Ref1 Nf6 (25... Bxd2 $2 26. Rxf5+ gxf5 27. Qh5+ Rg6 28. Rxg6 $19) 26. Bxf4 Rxf4) 25. Re2 {[%emt 0:00:30]} (25. Qe3 $11 Rf6 26. c4) 25... Rf6 {[%emt 0:01:04]} (25... Qd8 $5) 26. d5 {[%emt 0:00:22]} (26. Qg2 $11 {keeps the balance.}) 26... cxd5 $17 {[%emt 0:01:03]} (26... exd5 $2 27. c4 (27. Qc8 Re6 $11) 27... Qc5 28. Rc1 $18 (28. Qc8 Ne6 $18)) 27. c4 {[%emt 0:00:07]} Qa6 {[%emt 0:00:50]} 28. Bc3 $2 {[%emt 0:00:58]} (28. Qf3 dxc4 29. Bc2) 28... Rxf4 {[%emt 0:04:14]} 29. Rge1 {[%emt 0:00:27]} (29. Rg4 $142 dxc4 30. Rxf4+ Bxf4 31. Qf3) 29... dxc4 $19 {[%emt 0:01:00]} 30. Bc2 {[%emt 0:00:04]} Ng5 {[%emt 0:02:07]} (30... Qxa2 31. Rxe6 Qa6 (31... Ng5 $2 32. Bf5 $18) 32. Qe3 Qc6+ (32... Ng5 33. Qxf4+ Bxf4 34. Re7#) 33. Be4 Rxe4 34. Rxe4 $14) (30... Nf6 $142 {...Qc6+ is the strong threat.} 31. Bxf6 Rxf6) 31. Qg2 $19 {[%emt 0:00:04]} Qc6 {[%emt 0:00:55]} 32. Be4 $2 {[%emt 0:00:14]} (32. Qxc6 bxc6 33. Bd2) 32... Nxe4 $19 {[%emt 0:00:51]} 33. Rxe4 {[%emt 0:00:08]} Rxe4 {[%emt 0:00:43]} 34. Rxe4 {[%emt 0:00:06]} Nh7 {[%emt 0:00:21]} 35. Qf3+ {[%emt 0:02:25]} Ke7 {[%emt 0:00:33]} 36. Qg4 {[%emt 0:00:35]} Qd5 {[%emt 0:01:04]} 37. Bg7 {[%emt 0:00:27]} Ng5 {[%emt 0:01:34]} 38. h7 {[%emt 0:00:28]} Nxh7 {[%emt 0:00:56]} (38... Qxe4+ $2 {is the wrong capture.} 39. Qxe4 Nxh7 40. Qxb7+ (40. Qxg6 Be5 $18) 40... Ke8 41. Bd4 $18 (41. Qxa7 Be7 $18)) 39. Qxg6 {[%emt 0:00:32]} Ng5 {[%emt 0:01:06]} 40. Bf6+ {[%emt 0:00:24]} Kd7 {[%emt 0:00:24]} 41. Qxg8 {[%emt 0:30:23]} Qxe4+ {[%emt 0:30:26]} 42. Kg1 {[%emt 0:00:08]} Qe3+ {[%emt 0:00:00]} 43. Kf1 {[%emt 0:00:00]} Qf3+ {[%emt 0:00:00]} 44. Ke1 {[%emt 0:00:00]} Qxf6 {[%emt 0:00:00]} 0-1